Cogmind - Beta 11.1 @@@ ROGUE MODE // 2022.08.24 @ 00:12:56 Player: grusonbot Result: Destroyed by S-10 Pest with Light Assault Rifle Performance ------------- Evolutions (1) 500 Regions Visited (2) 400 Robots Destroyed (10) 50 Value Destroyed (374) 374 Prototype IDs (0) 0 Alien Tech Used (0) 0 Bonus (0) 0 TOTAL SCORE: 1324 Bonus ------- None Cogmind --------- Core Integrity 0/400 Matter 300/300 Energy 100/100 System Corruption 2% Temperature Cool (15) Movement Core (50) Location -9/Materials Parts ------- > --- POWER (3) -------- (None) > --- PROPULSION (2) --- (None) > --- UTILITY (2) ------ (None) > --- WEAPON (2) ------- (None) > --- INVENTORY (5) ---- Aluminum Leg Huge Storage Unit Small Laser Particle Gun Mini Grenade Launcher Peak State ------------ > --- POWER ------------ Ion Engine > --- PROPULSION ------- Aluminum Leg Aluminum Leg > --- UTILITY ---------- Small Storage Unit Targeting Computer > --- WEAPON ----------- Light Assault Rifle Light Assault Rifle > --- INVENTORY -------- Light Ion Engine Small Laser [Rating: 7] Favorites ----------- Power Ion Engine Engine Ion Engine Propulsion Aluminum Leg Leg Aluminum Leg Utility Small Storage Unit Storage Small Storage Unit Processor Targeting Computer Weapon Light Assault Rifle Ballistic Gun Light Assault Rifle Build | -11 -10 -9 ------- Run | Scr Mat Mat Slots Evolved 2 | . . 2 Power 2 | . . 2 Propulsion . | . . . Utility . | . . . Weapon . | . . . Parts Attached 9 | 6 3 . Power 1 | 1 . . Engine 1 | 1 . . Core . | . . . Reactor . | . . . Propulsion 2 | 2 . . Treads . | . . . Leg 2 | 2 . . Wheel . | . . . Hover . | . . . Flight . | . . . Utility 4 | 1 3 . Device . | . . . Storage 3 | 1 2 . Processor 1 | . 1 . Hackware . | . . . Protection . | . . . Artifact . | . . . Weapon 2 | 2 . . Energy Gun . | . . . Energy Cannon . | . . . Ballistic Gun 2 | 2 . . Ballistic Cannon . | . . . Launcher . | . . . Special Weapon . | . . . Impact Weapon . | . . . Slashing Weapon . | . . . Piercing Weapon . | . . . Special Melee Weapon . | . . . Unidentified Prototypes . | . . . Parts Lost 7 | . 6 1 Power 1 | . 1 . Propulsion 2 | . 2 . Utility 2 | . 1 1 Weapon 2 | . 2 . Highest Loss Streak 6 | . 6 1 To Critical Strikes . | . . . Average Slot Usage (%) 73 | . 81 11 Engine 10 | . 11 . Leg 20 | . 22 . Storage 13 | . 14 11 Processor 9 | . 10 . Ballistic Gun 19 | . 21 . Naked Turns 4 | . . 4 Heaviest Build 12 | 12 12 5 Greatest Support 20 | 20 20 3 Greatest Overweight (x) 1 | . 1 1 Average Overweight (x) . | . . . Largest Inventory Capacity 25 | 8 25 8 Average Capacity 7 | 7 8 7 Most Carried 6 | 5 6 6 Average Carried 4 | 1 5 5 Final Capacity 8 | 8 8 5 Final Carried 6 | 2 6 5 Class Distribution -------------------- 100% | Mutant Dominant Class ---------------- Mutant | -10/Materials Mutant | -9/Materials Resources | -11 -10 -9 ----------- Run | Scr Mat Mat Matter Collected 358 | 202 154 2 Remotely . | . . . Salvage Created 466 | . 406 60 Parts 27 | . 22 5 Haulers Intercepted . | . . . Recyclers Shooed . | . . . Parts Field Recycled . | . . . Retrieved Matter . | . . . Parts Self-Destructed . | . . . Prevented . | . . . Kills | -11 -10 -9 ------- Run | Scr Mat Mat Combat Hostiles Destroyed 9 | . 8 1 Melee 3 | . 2 1 Guns 6 | . 6 . Classes Destroyed 2 | . 2 . Watcher 1 | . 1 . Grunt 9 | . 8 1 Best Kill Streak 2 | . 2 1 Combat Bots Only 2 | . 2 1 Max Kills in Single Turn 1 | . 1 1 Gunslinging . | . . . Exploded . | . . . Melee 1 | . 1 1 Uniques/NPCs Destroyed . | . . . Combat | -11 -10 -9 -------- Run | Scr Mat Mat Damage Taken 1234 | . 709 525 Core 646 | . 237 409 Absorbed by Shields . | . . . Core Remaining (%) 52 | 100 5 . Volleys Fired 45 | . 45 . Largest 2 | . 2 . Hottest 40 | . 40 . Shots Fired 82 | . 82 . Gun 82 | . 82 . Cannon . | . . . Launcher . | . . . Special . | . . . Kinetic 82 | . 82 . Thermal . | . . . Explosive . | . . . Electromagnetic . | . . . Robot Hit Streak 8 | . 8 . Robot Miss Streak 6 | . 6 . Penetration Max . | . . . Secondary Targets 1 | . 1 . Max Gunslinging Chain 1 | . 1 . Shots Hit Robots 50 | . 50 . Core Hits 47 | . 33 14 Critical Kills . | . . . Critical Parts Destroyed . | . . . Critical Strikes . | . . . Melee Attacks . | . . . Impact . | . . . Slashing . | . . . Piercing . | . . . Sneak Attacks . | . . . Combat Hostiles . | . . . Follow-up Attacks . | . . . Damage Inflicted 543 | . 488 55 Guns 407 | . 407 . Cannons . | . . . Explosions . | . . . Melee . | . . . Ramming 136 | . 81 55 Kinetic 407 | . 407 . Thermal . | . . . Explosive . | . . . Electromagnetic . | . . . Impact . | . . . Slashing . | . . . Piercing . | . . . Highest Corruption 2 | . . 2 Average Corruption 2 | . . 2 Corruption Purged . | . . . Corruption Blocked . | . . . Effects 2 | . . 2 Message Errors 1 | . . 1 Matter Fused 1 | . . 1 Overload Shots . | . . . Overflow Damage . | . . . Projectiles . | . . . Explosions . | . . . Melee . | . . . Knockbacks 2 | . . 2 Impact 2 | . . 2 Kinetic . | . . . Secondary . | . . . Self-Inflicted Damage 50 | . 27 23 Shots . | . . . Rammed 48 | . 23 25 Targets Rammed 56 | . 31 25 Kicked 8 | . 8 . Crushed . | . . . Highest Temperature 27 | . 27 5 Average Temperature 10 | . 10 5 Received Heat Transfer 645 | . 399 246 Siege Activations . | . . . Robots Corrupted . | . . . Combat Hostiles . | . . . Parts Fried . | . . . Impact Corruptions . | . . . Robots Melted . | . . . Combat Hostiles . | . . . Parts Melted . | . . . Heat Transferred . | . . . Parts Sabotaged . | . . . Parts Stolen . | . . . Parts Stripped . | . . . Power Chain Reactions . | . . . Missiles Intercepted . | . . . Alert | -11 -10 -9 ------- Run | Scr Mat Mat Peak Influence 192 | . 192 70 Initial 20 | . . 20 Average 64 | . 77 30 Maximum Alert Level . | . . . Low Security (%) 100 | 100 100 100 Level 1 . | . . . Level 2 . | . . . Level 3 . | . . . Level 4 . | . . . Level 5 . | . . . High Security . | . . . Max Security . | . . . Squads Dispatched 1 | . . 1 Investigation . | . . . Extermination . | . . . Reinforcement 1 | . . 1 Assault . | . . . Garrison . | . . . Intercept . | . . . Searches Triggered . | . . . Construction Impeded . | . . . Haulers Reinforced . | . . . Active Scanning Responses . | . . . Cargo Convoy Interrupts . | . . . Stealth | -11 -10 -9 --------- Run | Scr Mat Mat Distress Signals 4 | . 3 1 Communications Jammed . | . . . Distress Signals . | . . . Times Spotted 25 | . 16 9 Peak Tracking Total 10 | . 5 10 Tactical Retreats 1 | . 1 . Traps | -11 -10 -9 ------- Run | Scr Mat Mat Traps Triggered . | . . . Indirectly . | . . . Trap Hack Attempts . | . . . Triggered . | . . . Disarmed . | . . . Reprogrammed . | . . . Reused . | . . . Traps Extracted . | . . . Installed . | . . . Triggered . | . . . Machines | -11 -10 -9 ---------- Run | Scr Mat Mat Machines Disabled . | . . . Max in Single Turn . | . . . Machines Sabotaged . | . . . Garrisons Compromised . | . . . Overloaded Fab Kills . | . . . Hacking | -11 -10 -9 --------- Run | Scr Mat Mat Machines Accessed . | . . . Terminals . | . . . Fabricators . | . . . Repair Stations . | . . . Recycling Units . | . . . Scanalyzers . | . . . Garrison Access . | . . . Total Hacks . | . . . Successful . | . . . Failed . | . . . Catastrophic . | . . . Database Lockouts . | . . . Manual . | . . . Terminals . | . . . Fabricators . | . . . Repair Stations . | . . . Recycling Units . | . . . Scanalyzers . | . . . Garrison Access . | . . . Terminal Hacks . | . . . Fabricator Hacks . | . . . Repair Station Hacks . | . . . Recycling Unit Hacks . | . . . Scanalyzer . | . . . Garrison Access Hacks . | . . . Unauthorized Hacks . | . . . Terminals . | . . . Fabricators . | . . . Repair Stations . | . . . Recycling Units . | . . . Scanalyzers . | . . . Garrison Access . | . . . Data Cores Recovered . | . . . Used . | . . . Hacking Detections . | . . . Full Trace Events . | . . . Feedback Events . | . . . Feedback Blocked . | . . . Robot Schematics Acquired . | . . . Robots Built . | . . . Authchips . | . . . Time . | . . . Total Robot Build Rating . | . . . Part Schematics Acquired . | . . . Parts Built . | . . . Authchips . | . . . Time . | . . . Total Part Build Rating . | . . . Parts Repaired . | . . . Time . | . . . Parts Recycled . | . . . Recycled Matter . | . . . Retrieved Matter . | . . . Retrieved Components . | . . . Parts Scanalyzed . | . . . Part Schematics Acquired . | . . . Parts Damaged . | . . . Bothacking | -11 -10 -9 ------------ Run | Scr Mat Mat Used RIF Installer . | . . . Robots Hacked . | . . . Non-combat . | . . . Combat . | . . . Robot Hacks Applied . | . . . Relay Couplers Released . | . . . Fabnet Peak Effective % . | . . . Robots Rewired . | . . . Allies Hacked . | . . . Hacks Repelled . | . . . Allies | -11 -10 -9 -------- Run | Scr Mat Mat Total Allies . | . . . Largest Group . | . . . Highest-Rated Group . | . . . Highest-Rated Ally . | . . . Total Orders . | . . . Ally Attacks . | . . . Total Damage . | . . . Kills . | . . . Allies Corrupted . | . . . Allies Melted . | . . . Intel | -11 -10 -9 ------- Run | Scr Mat Mat Robot Analysis Total . | . . . Derelict Logs Recovered . | . . . Drone Launches . | . . . Drone Recoveries . | . . . Exploration | -11 -10 -9 ------------- Run | Scr Mat Mat Turns Passed 706 | 74 558 74 Spaces Moved 436 | 59 327 50 Core 148 | 15 83 50 Treads . | . . . Legs 288 | 44 244 . Wheels . | . . . Hover . | . . . Flight . | . . . Fastest Speed 50 | 50 100 50 Average Speed 111 | 102 114 99 Slowest Speed 120 | 120 120 100 Overloaded Moves . | . . . Propulsion Burnouts . | . . . Robots Hopped . | . . . Cave-ins Triggered . | . . . Exploration Rate (%) 23 | 5 55 10 Regions Visited 2 Branch Regions . Pre-discovered Areas . | . . . Known Exits Taken . | . . . Unknown Exits Taken 2 | 1 1 . Scrap Searched . | . . . Spaces Dug . | . . . Terrain Destroyed . | . . . Melee . | . . . Projectile . | . . . AOE . | . . . Terrain Rammed . | . . . Walls Destroyed . | . . . Machines Disabled . | . . . Actions | -11 -10 -9 --------- Run | Scr Mat Mat Total 588 | 72 441 75 Wait 31 | . 31 . Move 434 | 58 326 50 Hop . | . . . Pick Up 13 | 8 5 . Fast Attach . | . . . Attach 7 | 6 1 . Detach . | . . . Swap 2 | . 2 . Drop . | . . . Fire 45 | . 45 . Melee . | . . . Ram 48 | . 23 25 Kick 8 | . 8 . Crush . | . . . Escape Stasis . | . . . Rewire . | . . . Trap . | . . . Miscellaneous . | . . . Route ------- -11/Scrapyard -10/Materials (discovered 2 exits: [*Mat x2]) -9/Materials History --------- Turn | Location | Event 13 | -11/Scrapyard | Discovered new exit (range 16) 75 | -11/Scrapyard | Entered Materials 336 | -10/Materials | Build established: Mutant 347 | -10/Materials | Discovered new exit (range 10) 482 | -10/Materials | Discovered new exit (range 16) 527 | -10/Materials | Core integrity fell below 50% 545 | -10/Materials | Core integrity fell below 20% 559 | -10/Materials | Lost 6 parts (1p2n1u2w) 633 | -10/Materials | Entered another Materials area 633 | -9/Materials | Evolved 2 slots: Power x2 696 | -9/Materials | Core integrity fell below 50% 703 | -9/Materials | Core integrity fell below 20% 707 | -9/Materials | Destroyed by S-10 Pest with Light Assault Rifle Last Messages --------------- 00693_ Destabilizing: Core damaged (-16). 00694_ Slammed into G-47 Trooper. 00695_ O-16 Technician: "IFF HANDSHAKE FAILED. SECURING TERMINAL." 00695_ Critical hit (Burn: +37). 00695_ Slammed into G-47 Trooper. 00695_ G-47 Trooper knocked back. 00696_ Slammed into G-47 Trooper. 00698_ G-47 Trooper knocked back. 00699_ Slammed into G-47 Trooper. 00700_ ALERT: Hostiles spotted, dispatching reinforcements to Terminal M002. 00700_ Slammed into G-47 Trooper. 00703_ Sml. Storage Unit destroyed. 00703_ Slammed into G-47 Trooper. 00703_ G-47 Trooper destroyed. 00705_ Slammed into S-10 Pest. 00705_ S-10 Pest destroyed. 00706_ CA HROSQA 9%TJG1SDVES5PH 6T4U9DE%ZHXG 00706_ Slammed into G-47 Trooper. 00707_ Slammed into S-10 Pest. Map ----- +----------------------------------------------------+ | ?????????????????????????????????????????????????? | | ?????????????????????????????????????????????????? | | ?????????????????????????????????????????????????? | | ?????????????????????????????????????????????????? | | ?????????????????????????????????????????????????? | | ?????????????????????????????????????????????????? | | ?????????????????????????????????????????????????? | | ?????????????????????????????????????????????????? | | ?????????????????????????????????????????????????? | | ?????????????????????????????????????????????????? | | ?????????????????????????????????????????????????? | | ?????????????????????????????????????????????????? | | ?????????????????????????#???????????????????????? | | ????????????????????????? ???????????????????????? | | ????????????????????????? ???????????????????????? | | ????????????????????????# #??????????????????????? | | ????????????#??????????? ??????????????????????? | | ???????????? ??????????? T ??????????????????????? | | ???????????? ??????????? ??????????????????????? | | ???????????? ??????????# #??????????????????????? | | ???????????? ??????##### #??????????????????????? | | ??????????? ????? # #??????????????????????? | | ????????? """ ???# """?+ #??????????????##??????? | | ??????????""" ???#[ """ #=#?????????? ???????? | | ???????????"" ???# """%#s######## ????? | | ???????????? ???# %/@%g%% ????? | | ??????????###+#### #gs%%=########???????????? | | ??????????# #########g*%=%#??????????????????? | | ??????????# % %!%*########???????????? | | ??????????# % %*%[ +??????????? | | ??????????# %%#########??????????? | | ??????????# % ##########+####??????????????????? | | ??????????## ##????????????????????????????????? | | ???????????# #?????????????????????????????????? | | ???????????# #?????????????????????????????????? | | ???????????# +?????????????????????????????????? | | ???????????# #?????????????????????????????????? | | ???????????# #?????????????????????????????????? | | ???????????# #?????????????????????????????????? | | ???????????# #?????????????????????????????????? | | ???????????# #?????????????????????????????????? | | ???????????# #?????????????????????????????????? | | ???????????+ #?????????????????????????????????? | | ???????????# #?????????????????????????????????? | | ???????????# #?????????????????????????????????? | | ???????????# #?????????????????????????????????? | | ???????????# #?????????????????????????????????? | | ???????????# #?????????????????????????????????? | | ???????????# #?????????????????????????????????? | | ???????????# +?????????????????????????????????? | +----------------------------------------------------+ Best States ------------- Heat Dissipation 28 Energy Generation 10 Energy Capacity 250 Matter Stores 300 Matter Capacity 300 Sight Range 16 Terrain Scan Density 10 Evasion (%) 55 Targeting Accuracy 5 Item Schematics ----------------- None Robot Schematics ------------------ None Fabricated ------------ Nothing Alien Tech Used ----------------- None Achievements -------------- Close Call Fist Fight Challenges ------------ None Game ------ Seed BackupArmageddonInjector Manual? 0 Play Time 00:16:48 Cumulative 7.8 hours Start 2022.08.23 @ 21:47:04 End 2022.08.24 @ 00:12:56 Sessions 3 Manual Loads 0 Difficulty Rogue Special Mode None Game No. 10 Rogue 10 Adventurer 0 Explorer 0 Win Type - Total 0 Types 0/0/0/0/0/0/0/0/0 Lore% 10 Gallery% 10 Achievement% 12 Wizard Run 0 Options --------- ASCII 0 Keyboard 1 Movement Vi Keybinds 0 Fullscreen 2 Font 18/SmallcapsGlow Map View 76x50 Tactical HUD 1 Map Filters NONE Filters NONE Steam 1 RUN: 42fbc563-2286-4e75-9472-151a8f12735f